Cogmind - Beta 11.1 @@@ ROGUE MODE // 2022.06.21 @ 21:14:26 Player: queen's_gambit Result: Destroyed by G-34 Mercenary with Small Laser Performance ------------- Evolutions (1) 500 Regions Visited (3) 600 Robots Destroyed (19) 95 Value Destroyed (306) 306 Prototype IDs (3) 60 Alien Tech Used (0) 0 Bonus (0) 0 TOTAL SCORE: 1561 Bonus ------- None Cogmind --------- Core Integrity 0/400 Matter 300/300 Energy 91/100 System Corruption 7% Temperature Cool (6) Movement Treading (160) Location -9/Materials Parts ------- > --- POWER (1) -------- (None) > --- PROPULSION (3) --- Light Treads Aluminum Leg > --- UTILITY (3) ------ Small Storage Unit > --- WEAPON (2) ------- Hammer > --- INVENTORY (8) ---- Flight Unit Improved Terrain Scanner Peak State ------------ > --- POWER ------------ Light Ion Engine > --- PROPULSION ------- Combat Airjet Combat Airjet Combat Airjet > --- UTILITY ---------- Small Storage Unit Experimental Sensor Array Improved Light Armor Plating > --- WEAPON ----------- Light Assault Rifle > --- INVENTORY -------- Light Treads Aluminum Leg Flight Unit Improved Terrain Scanner [Rating: 30] Favorites ----------- Power Light Ion Engine Engine Light Ion Engine Propulsion Flight Unit Treads Light Treads Leg Aluminum Leg Wheel Compact Wheel Hover Unit Combat Airjet Flight Unit Flight Unit Utility Signal Interpreter Device Improved Terrain Scanner Storage Small Storage Unit Processor Signal Interpreter Protection Propulsion Shielding Weapon Light Assault Rifle Energy Gun Small Laser Ballistic Gun Light Assault Rifle Special Weapon Mining Laser Impact Weapon Hammer Build | -11 -10 -10 -9 ------- Run | Scr Mat Min Mat Slots Evolved 2 | . . . 2 Power . | . . . . Propulsion 1 | . . . 1 Utility 1 | . . . 1 Weapon . | . . . . Parts Attached 43 | 10 11 7 15 Power 5 | 1 . 1 3 Engine 5 | 1 . 1 3 Core . | . . . . Reactor . | . . . . Propulsion 16 | 2 5 4 5 Treads 2 | . . . 2 Leg 2 | . . . 2 Wheel 2 | 2 . . . Hover 3 | . . 2 1 Flight 7 | . 5 2 . Utility 10 | 3 2 1 4 Device 4 | 2 . . 2 Storage 2 | 1 . 1 . Processor 1 | . 1 . . Hackware . | . . . . Protection 3 | . 1 . 2 Artifact . | . . . . Weapon 12 | 4 4 1 3 Energy Gun 2 | 1 . . 1 Energy Cannon . | . . . . Ballistic Gun 8 | 3 4 1 . Ballistic Cannon . | . . . . Launcher . | . . . . Special Weapon 1 | . . . 1 Impact Weapon 1 | . . . 1 Slashing Weapon . | . . . . Piercing Weapon . | . . . . Special Melee Weapon . | . . . . Unidentified Prototypes 1 | . . . 1 Parts Lost 17 | . 1 . 16 Power 3 | . . . 3 Propulsion 5 | . 1 . 4 Utility 5 | . . . 5 Weapon 4 | . . . 4 Highest Loss Streak 15 | . 1 . 15 To Critical Strikes 1 | . . . 1 Average Slot Usage (%) 94 | . 99 100 83 Engine 12 | . 14 14 8 Wheel 2 | . 5 . . Hover 9 | . . 6 25 Flight 15 | . 22 21 . Device 7 | . 13 . 4 Storage 5 | . 3 1 11 Processor 9 | . 10 14 5 Protection 5 | . . 12 8 Ballistic Gun 22 | . 28 28 10 Naked Turns . | . . . . Heaviest Build 17 | 12 12 11 17 Greatest Support 36 | 32 32 24 36 Greatest Overweight (x) 2 | 1 2 . . Average Overweight (x) . | . . . . Largest Inventory Capacity 8 | 8 8 8 8 Average Capacity 6 | 7 5 5 8 Most Carried 8 | 7 8 8 7 Average Carried 5 | 4 5 5 5 Final Capacity 8 | 8 5 8 8 Final Carried 8 | 7 5 8 2 Class Distribution -------------------- 50% | Scavenger-Mutant 49% | Mutant Dominant Class ---------------- Mutant | -10/Materials Scavenger-Mutant | -10/Mines Scavenger-Mutant | -9/Materials Resources | -11 -10 -10 -9 ----------- Run | Scr Mat Min Mat Matter Collected 830 | 322 171 170 167 Remotely 88 | 53 . . 35 Salvage Created 469 | 94 157 48 170 Parts 48 | 7 23 9 9 Haulers Intercepted . | . . . . Recyclers Shooed 2 | . . 1 1 Parts Field Recycled . | . . . . Retrieved Matter . | . . . . Parts Self-Destructed . | . . . . Prevented . | . . . . Kills | -11 -10 -10 -9 ------- Run | Scr Mat Min Mat Combat Hostiles Destroyed 15 | . 9 2 4 Guns 14 | . 9 2 3 Classes Destroyed 6 | 2 3 . 1 Worker 2 | . 1 1 . Tunneler 1 | 1 . . . Recycler 1 | 1 . . . Swarmer 10 | . 8 2 . Grunt 4 | . 1 . 3 Sentry 1 | . . . 1 Best Kill Streak 3 | 1 3 2 1 Combat Bots Only 3 | . 3 2 1 Max Kills in Single Turn 1 | 1 1 1 1 Gunslinging . | . . . . Exploded . | . . . . Melee . | . . . . Uniques/NPCs Destroyed . | . . . . Combat | -11 -10 -10 -9 -------- Run | Scr Mat Min Mat Damage Taken 2075 | . 285 75 1715 Core 471 | . 70 . 401 Absorbed by Shields . | . . . . Redirected to Shielding 61 | . . 7 54 Core Remaining (%) 86 | 100 . 72 . Volleys Fired 77 | 7 32 9 29 Largest 2 | 2 2 2 2 Hottest 120 | 40 40 40 120 Shots Fired 137 | 14 64 18 41 Gun 133 | 14 64 18 37 Cannon . | . . . . Launcher . | . . . . Special 4 | . . . 4 Kinetic 127 | 14 64 18 31 Thermal 10 | . . . 10 Explosive . | . . . . Electromagnetic . | . . . . Robot Hit Streak 11 | 4 11 3 10 Robot Miss Streak 6 | 2 6 3 3 Penetration Max . | . . . . Secondary Targets 2 | . 2 . . Max Gunslinging Chain 1 | . 1 . . Shots Hit Robots 77 | 8 27 10 32 Core Hits 28 | 4 11 5 8 Critical Kills . | . . . . Critical Parts Destroyed 3 | . 1 . 2 Critical Strikes 3 | . 1 . 2 Destroy 1 | . 1 . . Smash 2 | . . . 2 Melee Attacks 14 | . . . 14 Impact 14 | . . . 14 Slashing . | . . . . Piercing . | . . . . Sneak Attacks . | . . . . Combat Hostiles . | . . . . Follow-up Attacks . | . . . . Damage Inflicted 935 | 97 281 126 431 Guns 715 | 96 281 126 212 Cannons . | . . . . Explosions . | . . . . Melee 200 | . . . 200 Ramming 20 | 1 . . 19 Kinetic 650 | 96 281 126 147 Thermal 65 | . . . 65 Explosive . | . . . . Electromagnetic . | . . . . Impact 200 | . . . 200 Slashing . | . . . . Piercing . | . . . . Highest Corruption 7 | . . . 7 Average Corruption 6 | . . . 6 Corruption Purged . | . . . . Corruption Blocked . | . . . . Effects 4 | . . . 4 Message Errors 3 | . . . 3 Parts Rejected 1 | . . . 1 Overload Shots . | . . . . Overflow Damage 32 | . . . 32 Projectiles . | . . . . Explosions . | . . . . Melee 32 | . . . 32 Knockbacks . | . . . . Impact . | . . . . Kinetic . | . . . . Secondary . | . . . . Self-Inflicted Damage 9 | . . . 9 Shots . | . . . . Rammed 6 | 1 . . 5 Targets Rammed 6 | 1 . . 5 Kicked . | . . . . Crushed . | . . . . Highest Temperature 32 | . 10 8 32 Average Temperature 6 | . 4 3 11 Received Heat Transfer 552 | . 48 . 504 Siege Activations . | . . . . Robots Corrupted . | . . . . Combat Hostiles . | . . . . Parts Fried 3 | . . . 3 Impact Corruptions 2 | . . . 2 Robots Melted . | . . . . Combat Hostiles . | . . . . Parts Melted . | . . . . Heat Transferred 150 | . . . 150 Parts Sabotaged . | . . . . Parts Stolen . | . . . . Parts Stripped . | . . . . Power Chain Reactions . | . . . . Missiles Intercepted . | . . . . Alert | -11 -10 -10 -9 ------- Run | Scr Mat Min Mat Peak Influence 388 | 10 388 206 143 Initial 151 | . 6 151 79 Average 135 | 3 177 198 89 Maximum Alert Level 1 | . 1 1 . Low Security (%) 62 | 100 53 8 100 Level 1 37 | . 46 91 . Level 2 . | . . . . Level 3 . | . . . . Level 4 . | . . . . Level 5 . | . . . . High Security . | . . . . Max Security . | . . . . Squads Dispatched 4 | . 4 . . Investigation 1 | . 1 . . Extermination . | . . . . Reinforcement 3 | . 3 . . Assault . | . . . . Garrison . | . . . . Intercept . | . . . . Searches Triggered . | . . . . Construction Impeded . | . . . . Haulers Reinforced . | . . . . Active Scanning Responses . | . . . . Cargo Convoy Interrupts . | . . . . Stealth | -11 -10 -10 -9 --------- Run | Scr Mat Min Mat Distress Signals 3 | . 2 . 1 Communications Jammed . | . . . . Distress Signals . | . . . . Times Spotted 35 | . 20 3 12 Peak Tracking Total 7 | . 6 3 7 Tactical Retreats 4 | . 3 . 1 Traps | -11 -10 -10 -9 ------- Run | Scr Mat Min Mat Traps Triggered . | . . . . Indirectly . | . . . . Trap Hack Attempts . | . . . . Triggered . | . . . . Disarmed . | . . . . Reprogrammed . | . . . . Reused . | . . . . Traps Extracted . | . . . . Installed . | . . . . Triggered . | . . . . Machines | -11 -10 -10 -9 ---------- Run | Scr Mat Min Mat Machines Disabled 1 | . 1 . . Max in Single Turn 1 | . 1 . . Machines Sabotaged . | . . . . Garrisons Compromised . | . . . . Overloaded Fab Kills . | . . . . Hacking | -11 -10 -10 -9 --------- Run | Scr Mat Min Mat Machines Accessed 5 | . 4 . 1 Terminals 3 | . 3 . . Fabricators . | . . . . Repair Stations . | . . . . Recycling Units 2 | . 1 . 1 Scanalyzers . | . . . . Garrison Access . | . . . . Total Hacks 12 | . 10 . 2 Successful 7 | . 5 . 2 Failed 5 | . 5 . . Catastrophic 2 | . 2 . . Database Lockouts . | . . . . Manual 5 | . 5 . . Terminals 9 | . 9 . . Fabricators . | . . . . Repair Stations . | . . . . Recycling Units 3 | . 1 . 2 Scanalyzers . | . . . . Garrison Access . | . . . . Terminal Hacks 4 | . 4 . . Record 2 | . 2 . . Prototype ID Bank 1 | . 1 . . Hauler Manifests 1 | . 1 . . Fabricator Hacks . | . . . . Repair Station Hacks . | . . . . Recycling Unit Hacks 3 | . 1 . 2 Process 1 | . 1 . . Report Inventory 1 | . . . 1 Retrieve Components 1 | . . . 1 Scanalyzer . | . . . . Garrison Access Hacks . | . . . . Unauthorized Hacks . | . . . . Terminals . | . . . . Fabricators . | . . . . Repair Stations . | . . . . Recycling Units . | . . . . Scanalyzers . | . . . . Garrison Access . | . . . . Data Cores Recovered . | . . . . Used . | . . . . Hacking Detections 3 | . 3 . . Full Trace Events 1 | . 1 . . Feedback Events . | . . . . Feedback Blocked . | . . . . Robot Schematics Acquired . | . . . . Robots Built . | . . . . Authchips . | . . . . Time . | . . . . Total Robot Build Rating . | . . . . Part Schematics Acquired . | . . . . Parts Built . | . . . . Authchips . | . . . . Time . | . . . . Total Part Build Rating . | . . . . Parts Repaired . | . . . . Time . | . . . . Parts Recycled . | . . . . Recycled Matter 8 | . 8 . . Retrieved Matter . | . . . . Retrieved Components 2 | . . . 2 Parts Scanalyzed . | . . . . Part Schematics Acquired . | . . . . Parts Damaged . | . . . . Bothacking | -11 -10 -10 -9 ------------ Run | Scr Mat Min Mat Used RIF Installer . | . . . . Robots Hacked . | . . . . Non-combat . | . . . . Combat . | . . . . Robot Hacks Applied . | . . . . Relay Couplers Released . | . . . . Fabnet Peak Effective % . | . . . . Robots Rewired . | . . . . Allies Hacked . | . . . . Hacks Repelled . | . . . . Allies | -11 -10 -10 -9 -------- Run | Scr Mat Min Mat Total Allies . | . . . . Largest Group . | . . . . Highest-Rated Group . | . . . . Highest-Rated Ally . | . . . . Total Orders . | . . . . Ally Attacks . | . . . . Total Damage . | . . . . Kills . | . . . . Allies Corrupted . | . . . . Allies Melted . | . . . . Intel | -11 -10 -10 -9 ------- Run | Scr Mat Min Mat Robot Analysis Total . | . . . . Derelict Logs Recovered . | . . . . Drone Launches . | . . . . Drone Recoveries . | . . . . Exploration | -11 -10 -10 -9 ------------- Run | Scr Mat Min Mat Turns Passed 824 | 111 321 173 219 Spaces Moved 897 | 75 411 305 106 Core 13 | 13 . . . Treads 1 | . . . 1 Legs 5 | . . . 5 Wheels 119 | 62 57 . . Hover 139 | . . 39 100 Flight 620 | . 354 266 . Fastest Speed 37 | 50 37 37 72 Average Speed 52 | 93 46 42 75 Slowest Speed 200 | 100 200 80 160 Overloaded Moves . | . . . . Propulsion Burnouts . | . . . . Robots Hopped 2 | . 2 . . Cave-ins Triggered 1 | . . . 1 Exploration Rate (%) 33 | 5 63 58 9 Regions Visited 3 Branch Regions 1 Pre-discovered Areas . | . . . . Known Exits Taken 2 | . 1 1 . Unknown Exits Taken 1 | 1 . . . Scrap Searched 1 | . . 1 . Spaces Dug . | . . . . Terrain Destroyed 3 | . . . 3 Melee . | . . . . Projectile 3 | . . . 3 AOE . | . . . . Terrain Rammed . | . . . . Walls Destroyed . | . . . . Machines Disabled . | . . . . Actions | -11 -10 -10 -9 --------- Run | Scr Mat Min Mat Total 1098 | 100 485 337 176 Wait 17 | . 10 4 3 Move 890 | 74 406 304 106 Hop 2 | . 2 . . Pick Up 22 | 6 8 4 4 Fast Attach 17 | 7 4 3 3 Attach 14 | 2 1 . 11 Detach 5 | 2 2 1 . Swap 12 | 1 6 4 1 Drop 22 | . 14 8 . Fire 77 | 7 32 9 29 Melee 14 | . . . 14 Ram 6 | 1 . . 5 Kick . | . . . . Crush . | . . . . Escape Stasis . | . . . . Rewire . | . . . . Trap . | . . . . Miscellaneous . | . . . . Route ------- -11/Scrapyard -10/Materials -10/Mines -9/Materials History --------- Turn | Location | Event 30 | -11/Scrapyard | Discovered new exit (range 15) 112 | -11/Scrapyard | Entered Materials 325 | -10/Materials | Build established: Mutant 428 | -10/Materials | Discovered new exit (range 7) 430 | -10/Materials | Identified exit to Mines 433 | -10/Materials | Entered Mines 522 | -10/Mines | Found a damaged Exp. Sensor Array with a note attached 523 | -10/Mines | Found Prototype Device 525 | -10/Mines | Assembled infested the area 530 | -10/Mines | Assisted by a Guerilla fighting off Assembled 554 | -10/Mines | Discovered new exit (range 11) 603 | -10/Mines | Identified exit to Materials 606 | -10/Mines | Entered Materials 606 | -9/Materials | Evolved 2 slots: Propulsion x1, Utility x1 704 | -9/Materials | Crushed by falling debris 727 | -9/Materials | Identified Exp. Sensor Array 748 | -9/Materials | Build established: Scavenger-Mutant 770 | -9/Materials | Core integrity fell below 50% 797 | -9/Materials | Core integrity fell below 20% 825 | -9/Materials | Destroyed by G-34 Mercenary with Small Laser Last Messages --------------- 00792_ Acquired 12 matter. 00792_ Acquired 4 matter. 00792_ Acquired 1 matter. 00792_ System corrupted: Lgt. Treads rejected. 00792_ Y-45 Defender destroyed. 00802_ Destroyed Heat Sink. 00805_ Sml. Laser destroyed. 00808_ Critical hit (Burn: +37). 00809_ WFIW IYMBVRMQN/RQRIP: 00817_ Aluminum Leg destroyed. 00817_ G-34 Mercenary suffers critical hit (Smash). 00817_ Destroyed Heat Sink. 00817_ G-34 Mercenary system corrupted by crushing effect. 00818_ G-34 Mercenary system terminally corrupted. 00818_ Sml. Laser fried. 00818_ Aluminum Leg fried. 00818_ Ion Engine fried. 00821_ Acquired Lgt. Treads. 00822_ Acquired 10 matter. 00823_ Hpw. Tractor Beam destroyed. Map ----- +----------------------------------------------------+ | ?????????????????????????????????????????# | | ?????????????????????????????????????????# | | ???????????????????????????? ????????????# | | ???????????????????????????? ???????????####+##### | | ???????????????????????????? ??????????# #? | | ???????????????????????????? ??????????# #? | | ???????????????????????????? ??????????# #? | | ???????????????????????????? ?########## #####? | | ???????????????????????????? ?# # #????? | | ?????????????????????????###+### """ # #????? | | ??????????????????# ###### # """ # #????? | | ??????????????????# # """ # #????? | | ??????????????????+ T + + #????? | | ??????????????????# # """]"" # #????? | | ??????????????????####+### # """ Y" # #????? | | ?????????????????????????## ## """ "" # #????? | | ?????????????????????????##% ## # #????? | | ?????????????????????????## ########### #????? | | ?????????????????????????## #?????????# ????? | | ?????????????????????????##%% #?????????# ???? | | ??????????????????????????# #?????????# ??? | | ??????????????????????????# #?????????# ###??? | | ??????????????????????????#= #?????????# #????? | | ??????????????????######### %=#?????????# #????? | | ??????????????????# *# #?????????? #????? | | ??????????????????# @gg #?????????? #????? | | ??????????????????# #g #?????????? ?????? | | ??????????????????# # #??????????????????? | | ??????????????????######### #??????????????????? | | ?????????????????????????? ?????????????????? | | ?????????????????????????? ????????????????? | | ????????????????????????? ???????????????? | | ?????????????????????????##########??????????????? | | ?????????????????????????????????????????????????? | | ?????????????????????????????????????????????????? | | ?????????????????????????????????????????????????? | | ?????????????????????????????????????????????????? | | ?????????????????????????????????????????????????? | | ?????????????????????????????????????????????????? | | ?????????????????????????????????????????????????? | | ?????????????????????????????????????????????????? | | ?????????????????????????????????????????????????? | | ?????????????????????????????????????????????????? | | ?????????????????????????????????????????????????? | | ?????????????????????????????????????????????????? | | ?????????????????????????????????????????????????? | | ?????????????????????????????????????????????????? | | ?????????????????????????????????????????????????? | | ?????????????????????????????????????????????????? | | ?????????????????????????????????????????????????? | +----------------------------------------------------+ Best States ------------- Heat Dissipation 28 Energy Generation 14 Energy Capacity 280 Matter Stores 300 Matter Capacity 300 Sight Range 16 Robot Scan Range 20 Terrain Scan Range 16 Terrain Scan Density 10 Armor Coverage 150 Propulsion Shielding 33 Evasion (%) 62 Recoil Reduction 1 Item Schematics ----------------- None Robot Schematics ------------------ None Fabricated ------------ Nothing Alien Tech Used ----------------- None Achievements -------------- None Challenges ------------ None Game ------ Seed FlakCargoGravjet Manual? 0 Play Time 00:40:07 Cumulative 16.4 hours Start 2022.06.21 @ 20:26:14 End 2022.06.21 @ 21:14:26 Sessions 1 Manual Loads 0 Difficulty Rogue Special Mode None Game No. 21 Rogue 21 Adventurer 0 Explorer 0 Win Type - Total 0 Types 0/0/0/0/0/0/0/0/0 Lore% 5 Gallery% 16 Achievement% 11 Wizard Run 0 Options --------- ASCII 0 Keyboard 1 Movement Vi Keybinds 0 Fullscreen 1 Font 18/SmallcapsGlow Map View 76x50 Tactical HUD 1 Map Filters NONE Filters NONE Steam 1 RUN: 444a10c2-e9a5-4d5e-9743-5b98b485d1e6